fUST/lending_fUST_20250720
["ID","MTS","AMOUNT","RATE_DAILY","PERIOD"]
[373389737,1752983445038,-464.66762062,0.000189,2]
[373389739,1752983445048,-460.0,0.000189,2]
[373389741,1752983445057,-460.0,0.000189,2]
[373389743,1752983445067,-467.29651523,0.000189,2]
[373389745,1752983445076,-460.0,0.000189,2]
[373389747,1752983445086,-460.0,0.000189,2]
[373389749,1752983445096,-460.0,0.000189,2]
[373389751,1752983445105,-501.181367,0.000189,2]
[373389753,1752983445115,-460.0,0.000189,2]
[373389755,1752983445124,-460.0,0.000189,2]
[373389757,1752983445133,-1131.3,0.000189,2]
[373389759,1752983445143,-460.0,0.000189,2]
[373389761,1752983445152,-460.0,0.000189,2]
[373389763,1752983445162,-460.0,0.000189,2]
[373389765,1752983445172,-460.0,0.000189,2]
[373389767,1752983445181,-629.3,0.000189,2]
[373389769,1752983445191,-460.0,0.000189,2]
[373389771,1752983445200,-460.0,0.000189,2]
[373389773,1752983445209,-1483.24499229,0.000189,2]
[373389775,1752983445218,-498.33,0.000189,2]
[373389777,1752983445227,-283.69,0.000189,2]
[373389780,1752983445238,-460.0,0.000189,2]
[373389781,1752983445247,-460.0,0.000189,2]
[373389783,1752983445256,-460.0,0.000189,2]
[373389785,1752983445265,-460.0,0.000189,2]
[373389787,1752983445274,-579.55,0.000189,2]
[373389789,1752983445283,-460.0,0.000189,2]
[373389791,1752983445292,-460.0,0.000189,2]
[373389793,1752983445302,-460.0,0.000189,2]
[373389795,1752983445311,-429.13335672,0.000189,2]
[373389798,1752983445321,-460.0,0.000189,2]
[373389800,1752983445330,-460.0,0.000189,2]
[373389802,1752983445339,-2292.08,0.000189,2]
[373389804,1752983445348,-460.0,0.000189,2]
[373389806,1752983445357,-460.0,0.000189,2]
[373389808,1752983445366,-475.07,0.000189,2]
[373389810,1752983445375,-460.0,0.000189,2]
[373389812,1752983445384,-460.0,0.000189,2]
[373389814,1752983445394,-460.0,0.000189,2]
[373389816,1752983445403,-460.0,0.000189,2]
[373389818,1752983445413,-464.94,0.000189,2]
[373389820,1752983445422,-467.94774604,0.000189,2]
[373389822,1752983445431,-312.25352016,0.000189,2]
[373389824,1752983445441,-460.0,0.000189,2]
[373389826,1752983445450,-460.0,0.000189,2]
[373389828,1752983445460,-460.0,0.000189,2]
[373389830,1752983445468,-475.07266339,0.00018901,2]
[373389832,1752983445477,-219.97056876,0.00018901,2]
[373389834,1752983445486,-460.0,0.00018901,2]
[373389836,1752983445496,-460.0,0.00018901,2]
[373389838,1752983445505,-460.0,0.00018901,2]
[373389840,1752983445514,-1321.89,0.00018901,2]
[373389842,1752983445523,-460.0,0.00018901,2]
[373389844,1752983445532,-460.0,0.00018901,2]
[373389846,1752983445541,-460.0,0.00018901,2]
[373389848,1752983445550,-1417.4,0.00018901,2]
[373389850,1752983445559,-460.0,0.00018901,2]
[373389852,1752983445568,-460.0,0.00018901,2]
[373389854,1752983445577,-460.0,0.00018901,2]
[373389856,1752983445586,-555.83,0.00018901,2]
[373389858,1752983445596,-460.0,0.00018901,2]
[373389860,1752983445605,-998.75,0.00018901,2]
[373389862,1752983445614,-460.0,0.00018901,2]
[373389864,1752983445623,-460.0,0.00018901,2]
[373389866,1752983445633,-477.87,0.00018901,2]
[373389868,1752983445642,-460.0,0.00018901,2]
[373389870,1752983445651,-4300.79,0.00018901,2]
[373389872,1752983445661,-460.0,0.00018901,2]
[373389874,1752983445671,-1826.24,0.00018902,2]
[373389876,1752983445680,-465.9007739,0.00018902,2]
[373389878,1752983445690,-460.0,0.00018902,2]
[373389880,1752983445699,-551.22934329,0.00018908,2]
[373389882,1752983445709,-460.0,0.00019,2]
[373389884,1752983445718,-460.0,0.00019,2]
[373389886,1752983445727,-460.0,0.00019,2]
[373389888,1752983445736,-460.0,0.00019,2]
[373389890,1752983445745,-460.0,0.00019,2]
[373389892,1752983445754,-460.0,0.00019,2]
[373389894,1752983445763,-460.0,0.00019,2]
[373389896,1752983445773,-460.0,0.00019,2]
[373389898,1752983445782,-479.16,0.00019,2]
[373389900,1752983445791,-460.0,0.00019,2]
[373389902,1752983445800,-460.0,0.00019,2]
[373389904,1752983445809,-460.0,0.00019,2]
[373389906,1752983445818,-460.0,0.00019,2]
[373389908,1752983445827,-460.0,0.00019,2]
[373389910,1752983445837,-460.0,0.00019,2]
[373389912,1752983445846,-460.0,0.00019,2]
[373389914,1752983445855,-460.0,0.00019,2]
[373389916,1752983445864,-460.0,0.00019,2]
[373389918,1752983445873,-737.0,0.00019001,2]
[373389920,1752983445883,-460.0,0.00019001,2]
[373389922,1752983445893,-153.24589562,0.00019001,2]
[373389924,1752983445902,-460.0,0.00019001,2]
[373389926,1752983445914,-460.0,0.00019001,2]
[373389928,1752983445927,-607.56,0.00019002,2]
[373389930,1752983445936,-460.0,0.00019002,2]
[373389932,1752983445946,-460.0,0.00019002,2]
[373389934,1752983445955,-1285.42,0.00019002,2]
[373389936,1752983445965,-3001.61,0.00019002,2]
[373389938,1752983445975,-751.75,0.00019004,2]
[373389940,1752983445984,-1036.92,0.00019004,2]
[373389942,1752983445994,-460.0,0.00019004,2]
[373389944,1752983446004,-246.15643029,0.00019106,2]
[373389946,1752983446013,-151.0,0.00019106,2]
[373389948,1752983446024,-500.0,0.00019106,2]
[373389950,1752983446033,-151.0,0.00019106,2]
[373389952,1752983446043,-151.0,0.00019106,2]
[373389954,1752983446052,-153.49975317,0.00019106,2]
[373389956,1752983446061,-153.55897838,0.00019106,2]
[373389959,1752983446071,-500.0,0.00019106,2]
[373389961,1752983446081,-460.0,0.00019173,2]
[373389963,1752983446090,-460.0,0.00019173,2]
[373389965,1752983446099,-1186.22,0.00019173,2]
[373389967,1752983446109,-460.0,0.00019174,2]
[373389969,1752983446118,-460.0,0.00019174,2]
[373389971,1752983446127,-460.0,0.00019174,2]
[373389973,1752983446137,-460.0,0.00019174,2]
[373389975,1752983446146,-460.0,0.00019174,2]
[373389977,1752983446156,-460.0,0.00019174,2]
[373389979,1752983446165,-460.0,0.00019174,2]
[373389981,1752983446175,-409.88332304,0.00019174,2]
[373389983,1752983446184,-460.0,0.00019174,2]
[373389985,1752983446194,-460.0,0.00019174,2]
[373389987,1752983446204,-418.70881829,0.00019174,2]
[373389989,1752983446213,-460.0,0.00019174,2]
[373389991,1752983446222,-460.0,0.00019174,2]
[373389993,1752983446232,-460.0,0.00019174,2]
[373389995,1752983446241,-460.0,0.00019174,2]
[373389997,1752983446250,-1131.3,0.00019174,2]
[373389999,1752983446260,-460.0,0.00019174,2]
[373390001,1752983446269,-460.0,0.00019174,2]
[373390003,1752983446279,-460.0,0.00019174,2]
[373390005,1752983446288,-460.0,0.00019174,2]
[373390007,1752983446297,-629.3,0.00019174,2]
[373390009,1752983446307,-460.0,0.00019174,2]
[373390011,1752983446316,-460.0,0.00019174,2]
[373390013,1752983446325,-498.33,0.00019174,2]
[373390025,1752983446433,-460.0,0.00019174,2]
[373390027,1752983446443,-460.0,0.00019174,2]
[373390029,1752983446452,-460.0,0.00019174,2]
[373390031,1752983446461,-460.0,0.00019174,2]
[373390033,1752983446470,-579.55,0.00019174,2]
[373390035,1752983446479,-460.0,0.00019174,2]
[373390037,1752983446488,-460.0,0.00019174,2]
[373390039,1752983446499,-460.0,0.00019174,2]
[373390041,1752983446508,-460.0,0.00019174,2]
[373390043,1752983446518,-348.10325896,0.00019174,2]
[373390045,1752983446527,-2292.08,0.00019174,2]
[373390047,1752983446537,-460.0,0.00019174,2]
[373390050,1752983446547,-475.07,0.00019174,2]
[373390052,1752983446556,-460.0,0.00019174,2]
[373390054,1752983446565,-186.64067996,0.00019174,2]
[373390056,1752983446574,-536.13271897,0.00019174,2]
[373390057,1752983446583,-464.94,0.00019174,2]
[373390059,1752983446592,-460.0,0.00019174,2]
[373390061,1752983446602,-460.0,0.00019174,2]
[373390064,1752983446611,-460.0,0.00019174,2]
[373390065,1752983446620,-460.0,0.00019175,2]
[373390067,1752983446630,-460.0,0.00019175,2]
[373390069,1752983446639,-460.0,0.00019175,2]
[373390071,1752983446648,-1321.89,0.00019175,2]
[373390073,1752983446658,-460.0,0.00019175,2]
[373390076,1752983446669,-460.0,0.00019175,2]
[373390078,1752983446678,-460.0,0.00019175,2]
[373390080,1752983446688,-1417.4,0.00019175,2]
[373390082,1752983446698,-460.0,0.00019175,2]
[373390084,1752983446708,-460.0,0.00019175,2]
[373390086,1752983446719,-460.0,0.00019175,2]
[373390088,1752983446727,-555.83,0.00019175,2]
[373390090,1752983446736,-460.0,0.00019175,2]
[373390092,1752983446746,-998.75,0.00019175,2]
[373390094,1752983446755,-460.0,0.00019175,2]
[373390096,1752983446764,-460.0,0.00019175,2]
[373390098,1752983446773,-477.87,0.00019175,2]
[373390100,1752983446783,-273.88852504,0.00019175,2]
[373390102,1752983446792,-4300.79,0.00019175,2]
[373390104,1752983446802,-467.48955791,0.00019175,2]
[373390106,1752983446811,-1826.24,0.00019176,2]
[373390108,1752983446821,-460.0,0.00019176,2]
[373390110,1752983446830,-155.0,0.00019176,2]
[373390112,1752983446839,-248.95616459,0.00019178,2]
[373390114,1752983446848,-151.27698425,0.00019178,2]
[373390116,1752983446857,-178.597975,0.00019178,2]
[373390118,1752983446867,-500.0,0.00019199,2]
[373390120,1752983446875,-1511.79889742,0.00019205,2]
[373390122,1752983446885,-160.0,0.00019224,2]
[373390124,1752983446895,-1500.0,0.00019268,2]
[373390126,1752983446904,-1007.48046176,0.00019268,2]
[373390128,1752983446915,-460.0,0.00019274,2]
[373390130,1752983446929,-460.0,0.00019274,2]
[373390132,1752983446938,-460.0,0.00019274,2]
[373390134,1752983446947,-460.0,0.00019274,2]
[373390136,1752983446956,-460.0,0.00019274,2]
[373390138,1752983446966,-460.0,0.00019274,2]
[373390140,1752983446975,-460.0,0.00019274,2]
[373390142,1752983446983,-479.16,0.00019274,2]
[373390144,1752983446993,-460.0,0.00019274,2]
[373390146,1752983447003,-460.0,0.00019274,2]
[373390148,1752983447013,-158.45459108,0.00019274,2]
[373390150,1752983447023,-460.0,0.00019274,2]
[373390152,1752983447031,-460.0,0.00019274,2]
[373390154,1752983447041,-460.0,0.00019274,2]
[373390156,1752983447051,-460.0,0.00019274,2]
[373390158,1752983447060,-737.0,0.00019275,2]
[373390160,1752983447069,-460.0,0.00019275,2]
[373390162,1752983447079,-460.0,0.00019275,2]
[373390164,1752983447088,-572.68780049,0.00019275,2]
[373390165,1752983447098,-607.56,0.00019276,2]
[373390168,1752983447108,-460.0,0.00019276,2]
[373390169,1752983447122,-1285.42,0.00019276,2]
[373390171,1752983447136,-3001.61,0.00019276,2]
[373390174,1752983447147,-751.75,0.00019278,2]
[373390176,1752983447156,-1036.92,0.00019278,2]
[373390177,1752983447166,-460.0,0.00019278,2]
[373390180,1752983447175,-714.91313474,0.0001929,2]
[373390181,1752983447185,-4872.15893033,0.00019329,2]
[373390183,1752983447195,-199.77096402,0.0001938,2]
[373390185,1752983447205,-500.0,0.0001938,2]
[373390188,1752983447217,-294.95038557,0.0001938,2]
[373390189,1752983447227,-153.59961057,0.0001938,2]
[373390191,1752983447237,-500.0,0.0001938,2]
[373390193,1752983447248,-500.0,0.0001942,2]
[373390196,1752983447258,-547.24,0.0001944,3]
[373390197,1752983447267,-460.0,0.00019447,2]
[373390199,1752983447276,-460.0,0.00019447,2]
[373390201,1752983447286,-1186.22,0.00019447,2]
[373390203,1752983447295,-460.0,0.00019448,2]
[373390205,1752983447305,-460.0,0.00019448,2]
[373390207,1752983447314,-460.0,0.00019448,2]
[373390209,1752983447323,-173.97845056,0.00019448,2]
[373390211,1752983447333,-278.21981366,0.00019448,2]
[373390213,1752983447343,-460.0,0.00019448,2]
[373390215,1752983447352,-460.0,0.00019448,2]
[373390217,1752983447362,-258.66594549,0.00019448,2]
[373390219,1752983447372,-460.0,0.00019448,2]
[373390221,1752983447381,-460.0,0.00019448,2]
[373390223,1752983447391,-460.0,0.00019448,2]
[373390225,1752983447400,-1131.3,0.00019448,2]
[373390227,1752983447410,-460.0,0.00019448,2]
[373390229,1752983447421,-460.0,0.00019448,2]
[373390231,1752983447430,-460.0,0.00019448,2]
[373390233,1752983447439,-460.0,0.00019448,2]
[373390235,1752983447448,-629.3,0.00019448,2]
[373390237,1752983447457,-460.0,0.00019448,2]
[373390239,1752983447466,-460.0,0.00019448,2]
[373390241,1752983447475,-498.33,0.00019448,2]
[373390243,1752983447484,-597.73056306,0.00019448,2]
[373390245,1752983447494,-460.0,0.00019448,2]
[373390247,1752983447504,-460.0,0.00019448,2]
[373390249,1752983447513,-460.0,0.00019448,2]
[373390251,1752983447522,-579.55,0.00019448,2]
[373390253,1752983447531,-460.0,0.00019448,2]
[373390255,1752983447541,-460.0,0.00019448,2]
[373390257,1752983447550,-196.23,0.00019448,2]
[373390258,1752983447558,-460.0,0.00019448,2]
[373390260,1752983447567,-2292.08,0.00019448,2]
[373390262,1752983447577,-460.0,0.00019448,2]
[373390265,1752983447587,-475.07,0.00019448,2]
[373390266,1752983447596,-460.0,0.00019448,2]
[373390269,1752983447606,-464.94,0.00019448,2]
[373390270,1752983447615,-460.0,0.00019448,2]
[373390272,1752983447624,-460.0,0.00019448,2]
[373390274,1752983447633,-460.0,0.00019448,2]
[373390276,1752983447643,-460.0,0.00019449,2]
[373390278,1752983447652,-460.0,0.00019449,2]
[373390280,1752983447661,-1321.89,0.00019449,2]
[373390282,1752983447675,-460.0,0.00019449,2]
[373390285,1752983447685,-460.0,0.00019449,2]
[373390287,1752983447695,-460.0,0.00019449,2]
[373390289,1752983447704,-1417.4,0.00019449,2]
[373390291,1752983447714,-460.0,0.00019449,2]
[373390292,1752983447723,-460.0,0.00019449,2]
[373390294,1752983447733,-460.0,0.00019449,2]
[373390296,1752983447742,-555.83,0.00019449,2]
[373390298,1752983447752,-460.0,0.00019449,2]
[373390300,1752983447761,-998.75,0.00019449,2]
[373390302,1752983447771,-460.0,0.00019449,2]
[373390304,1752983447781,-477.87,0.00019449,2]
[373390306,1752983447790,-4300.79,0.00019449,2]
[373390308,1752983447800,-1826.24,0.0001945,2]
[373390310,1752983447811,-460.0,0.0001945,2]
[373390312,1752983447820,-167.26833532,0.00019548,2]
[373390314,1752983447829,-460.0,0.00019548,2]
[373390316,1752983447840,-460.0,0.00019548,2]
[373390318,1752983447850,-460.0,0.00019548,2]
[373390320,1752983447860,-460.0,0.00019548,2]
[373390322,1752983447870,-460.0,0.00019548,2]
[373390324,1752983447880,-479.16,0.00019548,2]
[373390326,1752983447890,-460.0,0.00019548,2]
[373390328,1752983447899,-201.26369959,0.00019548,2]
[373390330,1752983447909,-460.0,0.00019548,2]
[373390332,1752983447920,-460.0,0.00019548,2]
[373390334,1752983447931,-460.0,0.00019548,2]
[373390336,1752983447940,-737.0,0.00019549,2]
[373390338,1752983447948,-460.0,0.00019549,2]
[373390340,1752983447958,-460.0,0.00019549,2]
[373390342,1752983447967,-607.56,0.0001955,2]
[373390344,1752983447977,-1285.42,0.0001955,2]
[373390346,1752983447987,-3001.61,0.0001955,2]
[373390348,1752983447996,-751.75,0.00019552,2]
[373390349,1752983448006,-1036.92,0.00019552,2]
[373390351,1752983448015,-460.0,0.00019552,2]
[373390353,1752983448024,-500.0,0.00019654,2]
[373390355,1752983448034,-500.0,0.00019654,2]
[373390357,1752983448043,-460.0,0.00019721,2]
[373390359,1752983448053,-460.0,0.00019721,2]
[373390361,1752983448065,-1186.22,0.00019721,2]
[373390363,1752983448075,-477.91546652,0.00019722,2]
[373390365,1752983448085,-460.0,0.00019722,2]
[373390367,1752983448094,-460.0,0.00019722,2]
[373390369,1752983448103,-460.0,0.00019722,2]
[373390371,1752983448112,-460.0,0.00019722,2]
[373390373,1752983448122,-460.0,0.00019722,2]
[373390375,1752983448132,-460.0,0.00019722,2]
[373390377,1752983448141,-460.0,0.00019722,2]
[373390379,1752983448151,-1131.3,0.00019722,2]
[373390381,1752983448162,-460.0,0.00019722,2]
[373390383,1752983448173,-460.0,0.00019722,2]
[373390385,1752983448183,-460.0,0.00019722,2]
[373390387,1752983448192,-460.0,0.00019722,2]
[373390389,1752983448201,-629.3,0.00019722,2]
[373390391,1752983448211,-460.0,0.00019722,2]
[373390393,1752983448221,-460.0,0.00019722,2]
[373390395,1752983448230,-498.33,0.00019722,2]
[373390397,1752983448239,-155.69,0.00019722,2]
[373390399,1752983448249,-460.0,0.00019722,2]
[373390401,1752983448258,-460.0,0.00019722,2]
[373390403,1752983448268,-579.55,0.00019722,2]
[373390405,1752983448278,-460.0,0.00019722,2]
[373390407,1752983448287,-460.0,0.00019722,2]
[373390409,1752983448297,-460.0,0.00019722,2]
[373390411,1752983448307,-460.0,0.00019722,2]
[373390413,1752983448316,-2292.08,0.00019722,2]
[373390415,1752983448325,-475.07,0.00019722,2]
[373390417,1752983448335,-460.0,0.00019722,2]
[373390419,1752983448344,-464.94,0.00019722,2]
[373390421,1752983448353,-460.0,0.00019722,2]
[373390423,1752983448362,-500.0,0.00019722,2]
[373390425,1752983448372,-177.57295202,0.00019722,2]
[373390426,1752983448382,-500.0,0.00019722,2]
[373390428,1752983448391,-460.0,0.00019722,2]
[373390430,1752983448400,-460.0,0.00019723,2]
[373390432,1752983448409,-460.0,0.00019723,2]
[373390434,1752983448419,-1321.89,0.00019723,2]
[373390436,1752983448429,-460.0,0.00019723,2]
[373390438,1752983448438,-460.0,0.00019723,2]
[373390440,1752983448448,-460.0,0.00019723,2]
[373390442,1752983448457,-1417.4,0.00019723,2]
[373390444,1752983448466,-460.0,0.00019723,2]
[373390446,1752983448475,-460.0,0.00019723,2]
[373390448,1752983448485,-460.0,0.00019723,2]
[373390450,1752983448495,-555.83,0.00019723,2]
[373390452,1752983448504,-460.0,0.00019723,2]
[373390454,1752983448513,-998.75,0.00019723,2]
[373390456,1752983448523,-460.0,0.00019723,2]
[373390458,1752983448532,-477.87,0.00019723,2]
[373390460,1752983448542,-4300.79,0.00019723,2]
[373390462,1752983448551,-1826.24,0.00019724,2]
[373390464,1752983448561,-460.0,0.00019724,2]
[373390466,1752983448571,-160.0,0.00019727,2]
[373390468,1752983448580,-160.0,0.00019728,2]
[373390470,1752983448589,-160.0,0.00019728,2]
[373390472,1752983448598,-214.5637056,0.00019728,2]
[373390474,1752983448608,-839.59621281,0.00019728,2]
[373390485,1752983448705,-215.71456056,0.00019728,2]
[373390487,1752983448714,-160.0,0.00019728,2]
[373390488,1752983448724,-160.0,0.00019728,2]
[373390490,1752983448734,-160.0,0.00019728,2]
[373390492,1752983448743,-525.91036056,0.00019728,2]
[373390494,1752983448753,-160.0,0.00019728,2]
[373390496,1752983448762,-12615.16111038,0.00019754,2]
[373390498,1752983448772,-160.0,0.00019754,2]
[373390500,1752983448781,-476.42619115,0.00019754,2]
[373390502,1752983448791,-160.0,0.00019754,2]
[373390504,1752983448800,-230.98123516,0.00019754,2]
[373390506,1752983448810,-260.0,0.00019772,2]
[373390508,1752983448819,-151.0,0.000198,2]
[373390510,1752983448828,-2000.0,0.00019816,2]
[373390512,1752983448838,-1511.79889742,0.00019817,2]
[373390514,1752983448848,-460.0,0.00019822,2]
[373390516,1752983448857,-460.0,0.00019822,2]
[373390518,1752983448866,-460.0,0.00019822,2]
[373390520,1752983448876,-479.16,0.00019822,2]
[373390522,1752983448885,-460.0,0.00019822,2]
[373390524,1752983448895,-460.0,0.00019822,2]
[373390526,1752983448904,-460.0,0.00019822,2]
[373390528,1752983448914,-538.04655802,0.00019822,2]
[373390530,1752983448929,-737.0,0.00019823,2]
[373390532,1752983448940,-460.0,0.00019823,2]
[373390534,1752983448949,-460.0,0.00019823,2]
[373390536,1752983448959,-607.56,0.00019824,2]
[373390538,1752983448969,-1285.42,0.00019824,2]
[373390540,1752983448979,-3001.61,0.00019824,2]
[373390542,1752983448989,-751.75,0.00019826,2]
[373390544,1752983448998,-1036.92,0.00019826,2]
[373390546,1752983449010,-214.06596458,0.00019826,2]
[373390548,1752983449019,-6201.78778039,0.00019864,2]
[373390550,1752983449027,-8241.69686626,0.000199,2]
[373390552,1752983449037,-500.0,0.00019928,2]
[373390553,1752983449045,-500.0,0.00019928,2]
[373390555,1752983449055,-460.0,0.00019995,2]
[373390557,1752983449066,-460.0,0.00019995,2]
[373390559,1752983449075,-1186.22,0.00019995,2]
[373390561,1752983449085,-245.27434903,0.00019996,2]
[373390563,1752983449095,-460.0,0.00019996,2]
[373390565,1752983449105,-559.33238142,0.00019996,2]
[373390567,1752983449115,-460.0,0.00019996,2]
[373390569,1752983449124,-460.0,0.00019996,2]
[373390571,1752983449133,-460.0,0.00019996,2]
[373390573,1752983449143,-1131.3,0.00019996,2]
[373390575,1752983449152,-460.0,0.00019996,2]
[373390577,1752983449161,-460.0,0.00019996,2]
[373390579,1752983449171,-460.0,0.00019996,2]
[373390580,1752983449180,-460.0,0.00019996,2]
[373390582,1752983449189,-629.3,0.00019996,2]
[373390584,1752983449199,-460.0,0.00019996,2]
[373390586,1752983449208,-498.33,0.00019996,2]
[373390589,1752983449227,-460.0,0.00019996,2]
[373390590,1752983449238,-460.0,0.00019996,2]
[373390591,1752983449248,-579.55,0.00019996,2]
[373390592,1752983449257,-460.0,0.00019996,2]
[373390593,1752983449266,-460.0,0.00019996,2]
[373390594,1752983449276,-460.0,0.00019996,2]
[373390595,1752983449286,-486.75613743,0.00019996,2]
[373390596,1752983449295,-2292.08,0.00019996,2]
[373390597,1752983449305,-475.07,0.00019996,2]
[373390598,1752983449315,-460.0,0.00019996,2]
[373390599,1752983449324,-464.94,0.00019996,2]
[373390600,1752983449334,-460.0,0.00019996,2]
[373390601,1752983449343,-460.0,0.00019996,2]
[373390602,1752983449352,-460.0,0.00019997,2]
[373390603,1752983449362,-460.0,0.00019997,2]
[373390604,1752983449371,-1321.89,0.00019997,2]
[373390605,1752983449380,-460.0,0.00019997,2]
[373390606,1752983449390,-460.0,0.00019997,2]
[373390607,1752983449399,-460.0,0.00019997,2]
[373390608,1752983449409,-1417.4,0.00019997,2]
[373390609,1752983449419,-460.0,0.00019997,2]
[373390610,1752983449429,-460.0,0.00019997,2]
[373390611,1752983449438,-460.0,0.00019997,2]
[373390612,1752983449447,-555.83,0.00019997,2]
[373390613,1752983449456,-460.0,0.00019997,2]
[373390614,1752983449466,-998.75,0.00019997,2]
[373390616,1752983449476,-460.0,0.00019997,2]
[373390618,1752983449485,-477.87,0.00019997,2]
[373390620,1752983449495,-4300.79,0.00019997,2]
[373390622,1752983449504,-1826.24,0.00019998,2]
[373390624,1752983449514,-460.0,0.00019998,2]
[373390626,1752983449523,-460.0,0.00020096,2]
[373390628,1752983449532,-460.0,0.00020096,2]
[373390630,1752983449542,-477.03162213,0.00020096,2]
[373390632,1752983449551,-479.16,0.00020096,2]
[373390634,1752983449561,-247.2,0.00020096,2]
[373390636,1752983449571,-460.0,0.00020096,2]
[373390638,1752983449580,-460.0,0.00020096,2]
[373390640,1752983449590,-737.0,0.00020097,2]
[373390642,1752983449599,-460.0,0.00020097,2]
[373390644,1752983449608,-344.73350716,0.00020097,2]
[373390646,1752983449618,-607.56,0.00020098,2]
[373390648,1752983449627,-1285.42,0.00020098,2]
[373390650,1752983449637,-3001.61,0.00020098,2]
[373390652,1752983449647,-751.75,0.000201,2]
[373390654,1752983449656,-1036.92,0.000201,2]
[373390656,1752983449665,-8241.69686622,0.00020107,2]
[373390658,1752983449675,-500.0,0.00020148,2]
[373390660,1752983449686,-500.0,0.00020148,2]
[373390662,1752983449696,-190.355021,0.00020187,2]
[373390664,1752983449706,-500.0,0.00020202,2]
[373390666,1752983449716,-500.0,0.00020202,2]
[373390668,1752983449725,-500.0,0.00020209,2]
[373390670,1752983449734,-500.0,0.00020255,2]
[373390672,1752983449744,-460.0,0.00020269,2]
[373390674,1752983449753,-460.0,0.00020269,2]
[373390676,1752983449764,-1186.22,0.00020269,2]
[373390678,1752983449773,-164.60040062,0.0002027,2]
[373390680,1752983449782,-460.0,0.0002027,2]
[373390682,1752983449792,-460.0,0.0002027,2]
[373390684,1752983449802,-1131.3,0.0002027,2]
[373390686,1752983449811,-460.0,0.0002027,2]
[373390688,1752983449821,-460.0,0.0002027,2]
[373390690,1752983449830,-460.0,0.0002027,2]
[373390692,1752983449843,-460.0,0.0002027,2]
[373390694,1752983449853,-629.3,0.0002027,2]
[373390696,1752983449862,-460.0,0.0002027,2]
[373390698,1752983449871,-498.33,0.0002027,2]
[373390700,1752983449881,-460.0,0.0002027,2]
[373390702,1752983449891,-460.0,0.0002027,2]
[373390704,1752983449900,-579.55,0.0002027,2]
[373390706,1752983449909,-460.0,0.0002027,2]
[373390708,1752983449924,-460.0,0.0002027,2]
[373390710,1752983449935,-460.0,0.0002027,2]
[373390712,1752983449944,-2292.08,0.0002027,2]
[373390714,1752983449954,-475.07,0.0002027,2]
[373390716,1752983449964,-460.0,0.0002027,2]
[373390718,1752983449974,-464.94,0.0002027,2]
[373390720,1752983449984,-460.0,0.0002027,2]
[373390722,1752983449993,-460.0,0.0002027,2]
[373390724,1752983450004,-460.0,0.00020271,2]
[373390726,1752983450013,-460.0,0.00020271,2]